Cogmind - Beta 9.2 @@@ ROGUE MODE // 2019.12.11 @ 14:37:02 Player: sweetandcool Result: Destroyed by G-47 Trooper with Particle Gun Performance ------------- Evolutions (0) 0 Regions Visited (1) 200 Robots Destroyed (13) 65 Value Destroyed (217) 217 Prototype IDs (3) 60 Alien Tech Used (0) 0 Bonus (0) 0 TOTAL SCORE: 542 Bonus ------- None Cogmind --------- Core Integrity 0/250 Matter 191/300 Energy 114/125 System Corruption 0% Temperature Cool (21) Movement Core (1150) Ox22 Location -10/Materials Parts ------- > --- POWER (1) -------- Light Ion Engine > --- PROPULSION (2) --- (None) > --- UTILITY (2) ------ High-capacity Storage Unit High-capacity Storage Unit > --- WEAPON (2) ------- Light Assault Rifle Light Assault Rifle > --- INVENTORY (20) --- Light Treads Light Armor Plating Light Armor Plating Light Armor Plating Light Armor Plating Light Armor Plating Light Armor Plating Light Armor Plating Small Laser Small Laser Small Laser Assault Rifle Light Cannon Hammer Peak State ------------ > --- POWER ------------ Ion Engine > --- PROPULSION ------- Light Treads Light Treads > --- UTILITY ---------- Small Storage Unit High-capacity Storage Unit > --- WEAPON ----------- EM Pulse Gun Assault Rifle > --- INVENTORY -------- Light Ion Engine Aluminum Leg Aluminum Leg Small Storage Unit Light Armor Plating Light Armor Plating Light Armor Plating Small Laser Assault Rifle Hammer [Rating: 8] Favorites ----------- Power Ion Engine Engine Ion Engine Propulsion Light Treads Treads Light Treads Utility Small Storage Unit Storage Small Storage Unit Weapon Assault Rifle Energy Gun EM Pulse Gun Ballistic Gun Assault Rifle Build | -11 -10 ------- Run | Scr Mat Slots Evolved . | . . Power . | . . Propulsion . | . . Utility . | . . Weapon . | . . Parts Attached 14 | 7 7 Power 2 | 1 1 Engine 2 | 1 1 Core . | . . Reactor . | . . Propulsion 3 | 2 1 Treads 3 | 2 1 Leg . | . . Wheel . | . . Hover . | . . Flight . | . . Utility 4 | 2 2 Device . | . . Storage 4 | 2 2 Processor . | . . Hackware . | . . Protection . | . . Artifact . | . . Weapon 5 | 2 3 Energy Gun 1 | 1 . Energy Cannon . | . . Ballistic Gun 4 | 1 3 Ballistic Cannon . | . . Launcher . | . . Special Weapon . | . . Impact Weapon . | . . Slashing Weapon . | . . Piercing Weapon . | . . Special Melee Weapon . | . . Unidentified Prototypes . | . . Parts Lost 5 | . 5 Power 1 | . 1 Propulsion 2 | . 2 Utility . | . . Weapon 2 | . 2 Highest Loss Streak 5 | . 5 Average Slot Usage (%) 99 | . 99 Engine 13 | . 13 Treads 27 | . 27 Storage 28 | . 28 Energy Gun 9 | . 9 Ballistic Gun 18 | . 18 Naked Turns . | . . Heaviest Build 72 | 17 72 Greatest Support 40 | 40 40 Greatest Overweight (x) 2 | 2 1 Average Overweight (x) . | . . Largest Inventory Capacity 20 | 8 20 Average Capacity 13 | 6 14 Most Carried 17 | 4 17 Average Carried 11 | 3 12 Final Capacity 20 | 8 20 Final Carried 14 | 4 14 Class Distribution -------------------- 75% | Mutant 24% | Hauler-Mutant Dominant Class ---------------- Mutant | -10/Materials Resources | -11 -10 ----------- Run | Scr Mat Matter Collected 347 | 270 77 Remotely . | . . Salvage Created 432 | 71 361 Parts 27 | 4 23 Haulers Intercepted 2 | . 2 Recyclers Shooed . | . . Parts Field Recycled . | . . Retrieved Matter . | . . Parts Self-Destructed . | . . Prevented . | . . Kills | -11 -10 ------- Run | Scr Mat Combat Hostiles Destroyed 7 | . 7 Guns 5 | . 5 AOE 2 | . 2 Classes Destroyed 6 | 2 4 Worker 2 | 2 . Hauler 2 | . 2 Recycler 1 | 1 . Watcher 1 | . 1 Swarmer 3 | . 3 Grunt 4 | . 4 Best Kill Streak 3 | 2 3 Combat Bots Only 3 | . 3 Max Kills in Single Turn 2 | 2 1 Gunslinging . | . . Exploded 1 | . 1 Melee . | . . Uniques/NPCs Destroyed . | . . Combat | -11 -10 -------- Run | Scr Mat Damage Taken 984 | 52 932 Core 256 | 42 214 Absorbed by Shields . | . . Core Remaining (%) 83 | 83 . Volleys Fired 56 | 12 44 Largest 2 | 1 2 Hottest 60 | 40 60 Shots Fired 97 | 12 85 Gun 97 | 12 85 Cannon . | . . Launcher . | . . Special . | . . Kinetic 64 | . 64 Thermal . | . . Explosive . | . . Electromagnetic 33 | 12 21 Robot Hit Streak 20 | 3 20 Robot Miss Streak 3 | 3 3 Penetration Max . | . . Secondary Targets 1 | . 1 Max Gunslinging Chain 1 | . 1 Shots Hit Robots 61 | 6 55 Core Hits 19 | 3 16 Critical Hits 1 | . 1 Critical Kills 1 | . 1 Critical Parts Destroyed . | . . Melee Attacks . | . . Impact . | . . Slashing . | . . Piercing . | . . Sneak Attacks . | . . Combat Hostiles . | . . Follow-up Attacks . | . . Damage Inflicted 858 | 186 672 Guns 632 | 82 550 Cannons . | . . Explosions 221 | 104 117 Melee . | . . Ramming 5 | . 5 Kinetic 349 | . 349 Thermal 221 | 104 117 Explosive . | . . Electromagnetic 283 | 82 201 Impact . | . . Slashing . | . . Piercing . | . . Highest Corruption . | . . Average Corruption . | . . Corruption Purged . | . . Overload Shots . | . . Overflow Damage . | . . Projectiles . | . . Explosions . | . . Melee . | . . Knockbacks . | . . Impact . | . . Kinetic . | . . Secondary . | . . Self-Inflicted Damage 105 | 52 53 Shots 3 | 2 1 Rammed 2 | . 2 Targets Rammed 2 | . 2 Kicked . | . . Crushed . | . . Highest Temperature 93 | 12 93 Average Temperature 29 | 12 33 Received Heat Transfer 291 | . 291 Siege Activations . | . . Robots Corrupted . | . . Combat Hostiles . | . . Parts Fried 3 | 2 1 Impact Corruptions . | . . Robots Melted . | . . Combat Hostiles . | . . Parts Melted . | . . Heat Transferred 300 | 200 100 Parts Sabotaged . | . . Parts Stolen . | . . Parts Stripped . | . . Power Chain Reactions 4 | 2 2 Missiles Intercepted . | . . Alert | -11 -10 ------- Run | Scr Mat Peak Influence 231 | 15 231 Average Influence 98 | 2 111 Maximum Alert Level 1 | . 1 Low Security (%) 76 | 100 73 Level 1 23 | . 26 Level 2 . | . . Level 3 . | . . Level 4 . | . . Level 5 . | . . High Security . | . . Max Security . | . . Squads Dispatched 3 | . 3 Investigation 2 | . 2 Extermination . | . . Reinforcement 1 | . 1 Assault . | . . Garrison . | . . Intercept . | . . Construction Impeded . | . . Haulers Reinforced . | . . Stealth | -11 -10 --------- Run | Scr Mat Distress Signals 3 | . 3 Communications Jammed . | . . Distress Signals . | . . Times Spotted 20 | . 20 Peak Tracking Total 7 | . 7 Tactical Retreats 1 | . 1 Traps | -11 -10 ------- Run | Scr Mat Traps Triggered 1 | . 1 Indirectly . | . . Trap Hack Attempts . | . . Triggered . | . . Disarmed . | . . Reprogrammed . | . . Reused . | . . Traps Extracted . | . . Installed . | . . Triggered . | . . Machines | -11 -10 ---------- Run | Scr Mat Machines Disabled 1 | . 1 Max in Single Turn 1 | . 1 Machines Sabotaged . | . . Garrisons Compromised . | . . Overloaded Fab Kills . | . . Fab Network Shutdowns . | . . Hacking | -11 -10 --------- Run | Scr Mat Machines Accessed 5 | . 5 Terminals 5 | . 5 Fabricators . | . . Repair Stations . | . . Recycling Units . | . . Scanalyzers . | . . Garrison Access . | . . Total Hacks 23 | . 23 Successful 12 | . 12 Failed 11 | . 11 Catastrophic . | . . Database Lockouts . | . . Manual . | . . Terminals 23 | . 23 Fabricators . | . . Repair Stations . | . . Recycling Units . | . . Scanalyzers . | . . Garrison Access . | . . Terminal Hacks 12 | . 12 Record 2 | . 2 Robot Analysis 1 | . 1 Prototype ID Bank 2 | . 2 Emergency Access Points 1 | . 1 Repair Station Index 1 | . 1 Recycling Unit Index 1 | . 1 Locate Traps 1 | . 1 Maintenance Status 1 | . 1 Recall Investigation 1 | . 1 Hauler Manifests 1 | . 1 Fabricator Hacks . | . . Repair Station Hacks . | . . Recycling Unit Hacks . | . . Scanalyzer . | . . Garrison Access Hacks . | . . Unauthorized Hacks . | . . Terminals . | . . Fabricators . | . . Repair Stations . | . . Recycling Units . | . . Scanalyzers . | . . Garrison Access . | . . Data Cores Recovered . | . . Used . | . . Hacking Detections 5 | . 5 Full Trace Events 2 | . 2 Feedback Events . | . . Feedback Blocked . | . . Robot Schematics Acquired . | . . Robots Built . | . . Matter . | . . Time . | . . Total Robot Build Rating . | . . Part Schematics Acquired . | . . Parts Built . | . . Matter . | . . Time . | . . Total Part Build Rating . | . . Parts Repaired . | . . Time . | . . Parts Recycled . | . . Recycled Matter . | . . Retrieved Matter . | . . Retrieved Components . | . . Parts Scanalyzed . | . . Part Schematics Acquired . | . . Parts Damaged . | . . Bothacking | -11 -10 ------------ Run | Scr Mat Used RIF Installer . | . . Robots Hacked . | . . Non-combat . | . . Combat . | . . Robot Hacks Applied . | . . Relay Couplers Released . | . . Robots Rewired . | . . Allies Hacked . | . . Hacks Repelled . | . . Allies | -11 -10 -------- Run | Scr Mat Total Allies . | . . Largest Group . | . . Highest-Rated Group . | . . Highest-Rated Ally . | . . Total Orders . | . . Ally Attacks . | . . Total Damage . | . . Kills . | . . Allies Corrupted . | . . Allies Melted . | . . Intel | -11 -10 ------- Run | Scr Mat Robot Analysis Total 1 | . 1 Derelict Logs Recovered . | . . Drone Launches . | . . Drone Recoveries . | . . Exploration | -11 -10 ------------- Run | Scr Mat Turns Passed 979 | 117 862 Spaces Moved 451 | 52 399 Core 4 | 4 . Treads 447 | 48 399 Legs . | . . Wheels . | . . Hover . | . . Flight . | . . Fastest Speed 50 | 50 160 Average Speed 171 | 153 173 Slowest Speed 180 | 160 180 Overloaded Moves . | . . Propulsion Burnouts . | . . Robots Hopped . | . . Cave-ins Triggered . | . . Exploration Rate (%) 41 | 4 79 Regions Visited 1 Branch Regions . Pre-discovered Areas . | . . Known Exits Taken . | . . Unknown Exits Taken 1 | 1 . Scrap Searched . | . . Spaces Dug . | . . Terrain Destroyed 14 | 8 6 Melee . | . . Projectile . | . . AOE 14 | 8 6 Actions | -11 -10 --------- Run | Scr Mat Total 564 | 74 490 Wait 18 | . 18 Move 450 | 51 399 Hop . | . . Pick Up 19 | 4 15 Fast Attach 7 | 7 . Attach 3 | . 3 Detach . | . . Swap 4 | . 4 Drop 5 | . 5 Fire 56 | 12 44 Melee . | . . Ram . | . . Kick . | . . Crush 2 | . 2 Escape Stasis . | . . Rewire . | . . Trap . | . . Miscellaneous . | . . Route ------- -11/Scrapyard -10/Materials (discovered 2 exits: [*Mat x2]) History --------- Turn | Location | Event 6 | -11/Scrapyard | Discovered new exit (range 15) 118 | -11/Scrapyard | Entered Materials 309 | -10/Materials | Build established: Mutant 463 | -10/Materials | Discovered new exit (range 14) 539 | -10/Materials | Core integrity fell below 50% 825 | -10/Materials | Discovered new exit (range 13) 971 | -10/Materials | Core integrity fell below 20% 980 | -10/Materials | Destroyed by G-47 Trooper with Particle Gun Last Messages --------------- 00829_ R-06 Scavenger inserts Med. Matter Pod into recycling unit. 00829_ R-06 Scavenger collects Utility Shielding. 00832_ R-06 Scavenger inserts Mining Laser into recycling unit. 00833_ R-06 Scavenger collects Mining Laser. 00835_ R-06 Scavenger inserts Weight Redist. System into recycling unit. 00836_ R-06 Scavenger collects Med. Matter Pod. 00838_ R-06 Scavenger inserts Mining Laser into recycling unit. 00840_ R-06 Scavenger collects Utility Shielding. 00847_ R-06 Scavenger inserts Utility Shielding into recycling unit. 00853_ R-06 Scavenger inserts Med. Matter Pod into recycling unit. 00856_ R-06 Scavenger inserts Utility Shielding into recycling unit. 00905_ Slammed into R-06 Scavenger. 00919_ W-16 Scout sends out distress signal. 00941_ U-05 Engineer lays Concrete. 00964_ Lgt. Assault Rifle destroyed. 00966_ Ion Engine destroyed. 00968_ Destroyed Lgt. Ion Engine. 00970_ Integration Channel disabled. 00970_ Assault Rifle destroyed. 00976_ Lgt. Treads destroyed. Map ----- +----------------------------------------------------+ | ????????# ###?????#######+## """ ????? | | ????????+ ??????? ?????? | | ????????# ???????? ?????? | | ????????# ????????? ?????? | | ????????# ########????# "" ????? | | ????????# # #????# "T #???? | | ????????# # #????# "" #???? | | ????????# # #????+ #???? | | ######### + """ #????# #???? | | % " """ ?????### ############???? | | # """ ???????# #??????######### | | "+#???????????# ######## # | | ######## ######??????# + # | | ???????# # #??????# ### # | | ???????# # T #??????# #?# # | | ???????# =# #??????# #?# # | | ???????# %+ [ #??????# #?# # | | ???????# # * #??????# ### # | | ???????# #=! !#??????# # # | | ???????# +! ######## + # | | ???????# #### ^+ ## # # | | ???????# #??#+#### " ## # # | | ???????# #? ?# "" ## ##+###### | | ???????# # "" ## "" ##gg #??? | | ???????+ # "Y ## """s# s #??? | | ???????# / "" ## "" @ !! #??? | | ???????# # ## "" s# ! #??? | | ???????# # ## """ ## ! """ #??? | | ???????# ?#####+### """ ## """ #??? | | ???????# ??????????# " ## """ #??? | | ???????+???????????# !## """ #??? | | ???????????????????# [ ## #??? | | ???????????????????######## #??? | | ??????????????????????????# " " #??? | | ??????????????????????????# "Y" #??? | | ??????????????????????????# """ #??? | | ??????????????????????????########+## #??? | | ??????????????????????????# # #??? | | ??????????????????????????# # #??? | | ??????????????????????????# # #??? | | ??????????????????????????# # #??? | | ??????????????????????????#""" """ # < #??? | | ??????????????????????????#"R """ # #??? | | ??????????????????????????#""" """ #####??? | | ??????????????????????????? #??????? | | ??????????????????????????###########??????? | | ???????????????????????????????????????????? | | ???????????????????????????????????????????? | | ???????????????????????????????????????????? | | ???????????????????????????????????????????? | +----------------------------------------------------+ Best States ------------- Heat Dissipation 25 Energy Generation 10 Energy Capacity 250 Matter Stores 300 Matter Capacity 300 Sight Range 16 Terrain Scan Density 10 Evasion (%) 40 Recoil Reduction 2 Item Schematics ----------------- None Robot Schematics ------------------ None Fabricated ------------ Nothing Alien Tech Used ----------------- None Achievements -------------- None Challenges ------------ None Game ------ Seed RelayPoweredTriangulator Manual? 0 Play Time 00:06:39 Cumulative 69.7 hours Start 2019.12.11 @ 14:30:42 End 2019.12.11 @ 14:37:02 Sessions 1 Manual Loads 0 Difficulty Rogue Special Mode None Game No. 60 Rogue 60 Adventurer 0 Explorer 0 Win Type - Total 0 Types 0/0/0/0/0/0/0 Lore% 41 Gallery% 49 Achievement% 33 Wizard Run 0 Options --------- ASCII 0 Keyboard 0 Movement Numpad Keybinds 0 Fullscreen 1 Font 18/SmallcapsGlow Map View 76x50 Tactical HUD 1 Map Filters NONE Filters NONE Steam 1 RUN: ea478f88-d27d-40b7-9a88-79f827c11173